fUSD/lending_fUSD_20250308
["ID","MTS","AMOUNT","RATE_DAILY","PERIOD"]
[355635993,1741416641599,-500.0,8.219e-05,2]
[355635994,1741416641608,-4131.86,8.219e-05,2]
[355635995,1741416641617,-500.0,8.219e-05,2]
[355635996,1741416641627,-500.0,8.219e-05,2]
[355635997,1741416641636,-5639.67,8.219e-05,2]
[355635998,1741416641645,-490.35182578,8.219e-05,2]
[355635999,1741416641656,-500.0,8.219e-05,2]
[355636000,1741416641667,-11555.12,8.219e-05,2]
[355636001,1741416641685,-1050.07,8.219e-05,2]
[355636002,1741416641694,-500.0,8.219e-05,2]
[355636003,1741416641704,-7955.67,8.219e-05,2]
[355636004,1741416641713,-500.0,8.219e-05,2]
[355636005,1741416641722,-500.0,8.219e-05,2]
[355636006,1741416641732,-500.0,8.219e-05,2]
[355636007,1741416641751,-500.0,8.219e-05,2]
[355636008,1741416641763,-513.43660263,8.219e-05,2]
[355636009,1741416641772,-1540.52,8.219e-05,2]
[355636010,1741416641781,-513.74213284,8.219e-05,2]
[355636011,1741416641790,-500.0,8.219e-05,2]
[355636012,1741416641799,-500.0,8.219e-05,2]
[355636013,1741416641808,-553.14,8.219e-05,2]
[355636014,1741416641817,-3457.27,8.219e-05,2]
[355636015,1741416641826,-500.0,8.219e-05,2]
[355636016,1741416641835,-500.0,8.219e-05,2]
[355636017,1741416641843,-500.0,8.219e-05,2]
[355636018,1741416641852,-500.0,8.219e-05,2]
[355636019,1741416641862,-500.0,8.219e-05,2]
[355636020,1741416641871,-1458.07,8.219e-05,2]
[355636021,1741416641880,-211.56859174,8.219e-05,2]
[355636022,1741416641889,-4318.99,8.219e-05,2]
[355636023,1741416641899,-2221.86,8.219e-05,2]
[355636024,1741416641908,-500.0,8.219e-05,2]
[355636025,1741416641917,-20024.51,8.219e-05,2]
[355636026,1741416641927,-607.05,8.219e-05,2]
[355636027,1741416641936,-500.0,8.219e-05,2]
[355636028,1741416641946,-5038.55,8.219e-05,2]
[355636029,1741416641955,-500.0,8.219e-05,2]
[355636030,1741416641965,-3543.88,8.219e-05,2]
[355636031,1741416641974,-500.0,8.219e-05,2]
[355636032,1741416641984,-500.0,8.219e-05,2]
[355636033,1741416641994,-1535.82,8.219e-05,2]
[355636034,1741416642003,-500.0,8.219e-05,2]
[355636035,1741416642013,-500.0,8.219e-05,2]
[355636036,1741416642022,-500.0,8.219e-05,2]
[355636037,1741416642031,-500.0,8.219e-05,2]
[355636038,1741416642041,-500.0,8.219e-05,2]
[355636039,1741416642051,-500.0,8.219e-05,2]
[355636040,1741416642060,-500.0,8.219e-05,2]
[355636041,1741416642070,-2888.16,8.219e-05,2]
[355636042,1741416642079,-500.0,8.219e-05,2]
[355636043,1741416642089,-3385.47,8.219e-05,2]
[355636044,1741416642099,-500.0,8.219e-05,2]
[355636045,1741416642109,-3566.52,8.219e-05,2]
[355636046,1741416642119,-2517.7,8.219e-05,2]
[355636047,1741416642129,-500.0,8.219e-05,2]
[355636048,1741416642139,-3095.36,8.219e-05,2]
[355636049,1741416642149,-529.17985042,8.219e-05,2]
[355636050,1741416642158,-6855.7,8.219e-05,2]
[355636051,1741416642168,-500.0,8.219e-05,2]
[355636052,1741416642177,-500.0,8.219e-05,2]
[355636053,1741416642187,-504.96204676,8.219e-05,2]
[355636054,1741416642197,-500.0,8.219e-05,2]
[355636055,1741416642206,-258.79607334,8.219e-05,2]
[355636056,1741416642217,-500.0,8.219e-05,2]
[355636057,1741416642226,-500.0,8.219e-05,2]
[355636058,1741416642236,-520.41370145,8.219e-05,2]
[355636059,1741416642245,-5573.12,8.219e-05,2]
[355636060,1741416642255,-500.0,8.219e-05,2]
[355636061,1741416642264,-500.0,8.219e-05,2]
[355636062,1741416642273,-1221.14,8.219e-05,2]
[355636063,1741416642282,-7229.77,8.219e-05,2]
[355636064,1741416642291,-710.77,8.219e-05,2]
[355636065,1741416642300,-500.0,8.219e-05,2]
[355636066,1741416642309,-2235.77,8.219e-05,2]
[355636067,1741416642319,-500.0,8.219e-05,2]
[355636068,1741416642328,-487.55902013,8.219e-05,2]
[355636069,1741416642338,-4334.01,8.219e-05,2]
[355636070,1741416642347,-500.0,8.219e-05,2]
[355636071,1741416642357,-500.0,8.219e-05,2]
[355636072,1741416642367,-1636.54,8.219e-05,2]
[355636073,1741416642376,-500.0,8.219e-05,2]
[355636074,1741416642386,-500.0,8.219e-05,2]
[355636075,1741416642395,-500.0,8.219e-05,2]
[355636076,1741416642404,-500.0,8.219e-05,2]
[355636077,1741416642414,-1766.91,8.219e-05,2]
[355636078,1741416642424,-933.37,8.219e-05,2]
[355636079,1741416642436,-500.0,8.219e-05,2]
[355636080,1741416642445,-1698.51,8.219e-05,2]
[355636081,1741416642455,-2900.2,8.219e-05,2]
[355636082,1741416642464,-7792.67,8.219e-05,2]
[355636083,1741416642474,-12047.07,8.219e-05,2]
[355636084,1741416642484,-500.0,8.219e-05,2]
[355636085,1741416642495,-2595.39,8.219e-05,2]
[355636086,1741416642508,-670.32,8.219e-05,2]
[355636087,1741416642518,-500.0,8.219e-05,2]
[355636089,1741416642527,-571.74,8.219e-05,2]
[355636090,1741416642536,-500.0,8.219e-05,2]
[355636092,1741416642546,-500.0,8.219e-05,2]
[355636095,1741416642555,-2310.08,8.219e-05,2]
[355636097,1741416642564,-1350.51,8.219e-05,2]
[355636099,1741416642573,-25520.53,8.219e-05,2]
[355636100,1741416642583,-3418.48,8.219e-05,2]
[355636101,1741416642592,-500.0,8.219e-05,2]
[355636102,1741416642602,-4156.48,8.219e-05,2]
[355636103,1741416642611,-568.34580683,8.219e-05,2]
[355636104,1741416642621,-500.0,8.219e-05,2]
[355636105,1741416642629,-973.25,8.219e-05,2]
[355636106,1741416642639,-500.0,8.219e-05,2]
[355636107,1741416642648,-500.0,8.219e-05,2]
[355636108,1741416642657,-2100.65,8.219e-05,2]
[355636109,1741416642667,-500.0,8.219e-05,2]
[355636112,1741416642677,-755.87,8.219e-05,2]
[355636113,1741416642686,-3050.75,8.219e-05,2]
[355636114,1741416642696,-2323.94,8.219e-05,2]
[355636115,1741416642705,-1874.37,8.219e-05,2]
[355636116,1741416642714,-500.0,8.219e-05,2]
[355636117,1741416642724,-2340.5,8.219e-05,2]
[355636118,1741416642733,-1560.78,8.219e-05,2]
[355636119,1741416642744,-1557.78,8.219e-05,2]
[355636120,1741416642754,-1356.78,8.219e-05,2]
[355636121,1741416642764,-518.91479408,8.219e-05,2]
[355636122,1741416642774,-2554.2,8.219e-05,2]
[355636123,1741416642783,-500.0,8.219e-05,2]
[355636124,1741416642794,-500.0,8.219e-05,2]
[355636125,1741416642804,-500.0,8.219e-05,2]
[355636126,1741416642814,-500.0,8.219e-05,2]
[355636127,1741416642823,-3683.41,8.219e-05,2]
[355636128,1741416642833,-2494.61,8.219e-05,2]
[355636129,1741416642843,-500.0,8.219e-05,2]
[355636132,1741416643002,-1697.09,8.219e-05,2]
[355636133,1741416643016,-503.61585213,8.219e-05,2]
[355636134,1741416643026,-572.07,8.219e-05,2]
[355636135,1741416643036,-500.0,8.219e-05,2]
[355636136,1741416643045,-505.22533954,8.219e-05,2]
[355636137,1741416643054,-552.77721901,8.219e-05,2]
[355636138,1741416643064,-507.27090633,8.219e-05,2]
[355636139,1741416643074,-1267.56,8.219e-05,2]
[355636140,1741416643084,-883.13,8.219e-05,2]
[355636141,1741416643094,-1954.02,8.219e-05,2]
[355636142,1741416643104,-1003.35,8.219e-05,2]
[355636143,1741416643115,-1779.82,8.219e-05,2]
[355636144,1741416643125,-1000.0,8.219e-05,2]
[355636145,1741416643135,-199.94,8.219e-05,2]
[355636146,1741416643145,-250.0,8.219e-05,2]
[355636147,1741416643155,-5729.04,8.219e-05,2]
[355636148,1741416643164,-150.99,8.219e-05,2]
[355636149,1741416643174,-1076.49,8.219e-05,2]
[355636150,1741416643184,-1390.23,8.219e-05,2]
[355636151,1741416643193,-1220.53,8.219e-05,2]
[355636152,1741416643203,-151.2125411,8.473e-05,2]
[355636153,1741416643213,-500.0,8.492e-05,2]
[355636154,1741416643222,-506.45686842,8.492e-05,2]
[355636155,1741416643232,-500.0,8.492e-05,2]
[355636156,1741416643242,-500.0,8.492e-05,2]
[355636157,1741416643252,-500.0,8.492e-05,2]
[355636158,1741416643261,-500.0,8.492e-05,2]
[355636159,1741416643270,-500.0,8.492e-05,2]
[355636160,1741416643280,-234.668175,8.493e-05,2]
[355636161,1741416643290,-380.520373,8.493e-05,2]
[355636162,1741416643300,-500.0,8.493e-05,2]
[355636163,1741416643310,-500.0,8.493e-05,2]
[355636164,1741416643320,-500.0,8.493e-05,2]
[355636165,1741416643330,-500.0,8.493e-05,2]
[355636166,1741416643339,-500.0,8.493e-05,2]
[355636168,1741416643349,-924.18,8.493e-05,2]
[355636169,1741416643359,-500.0,8.493e-05,2]
[355636171,1741416643368,-500.0,8.493e-05,2]
[355636174,1741416643378,-500.0,8.493e-05,2]
[355636177,1741416643387,-500.0,8.493e-05,2]
[355636180,1741416643396,-500.0,8.493e-05,2]
[355636183,1741416643406,-699.62,8.493e-05,2]
[355636185,1741416643415,-500.0,8.493e-05,2]
[355636187,1741416643425,-859.92,8.493e-05,2]
[355636188,1741416643434,-500.0,8.493e-05,2]
[355636189,1741416643444,-990.77,8.493e-05,2]
[355636190,1741416643453,-500.0,8.493e-05,2]
[355636191,1741416643463,-500.0,8.493e-05,2]
[355636192,1741416643473,-500.0,8.493e-05,2]
[355636193,1741416643482,-764.8,8.493e-05,2]
[355636194,1741416643492,-500.0,8.493e-05,2]
[355636195,1741416643506,-1033.22,8.493e-05,2]
[355636196,1741416643515,-500.0,8.493e-05,2]
[355636197,1741416643524,-500.0,8.493e-05,2]
[355636198,1741416643534,-1154.68,8.493e-05,2]
[355636199,1741416643545,-1177.51,8.493e-05,2]
[355636200,1741416643555,-256.87459334,8.493e-05,2]
[355636201,1741416643565,-500.0,8.493e-05,2]
[355636202,1741416643575,-500.0,8.493e-05,2]
[355636203,1741416643587,-731.91,8.493e-05,2]
[355636204,1741416643597,-500.0,8.493e-05,2]
[355636205,1741416643606,-500.0,8.493e-05,2]
[355636206,1741416643616,-500.0,8.493e-05,2]
[355636207,1741416643625,-500.0,8.493e-05,2]
[355636208,1741416643634,-777.92,8.493e-05,2]
[355636209,1741416643643,-667.88,8.493e-05,2]
[355636210,1741416643653,-500.0,8.493e-05,2]
[355636211,1741416643662,-1149.41,8.493e-05,2]
[355636212,1741416643671,-996.73,8.493e-05,2]
[355636213,1741416643681,-500.0,8.493e-05,2]
[355636214,1741416643690,-500.0,8.493e-05,2]
[355636215,1741416643699,-500.0,8.493e-05,2]
[355636216,1741416643707,-500.0,8.493e-05,2]
[355636217,1741416643717,-500.0,8.493e-05,2]
[355636218,1741416643725,-979.4,8.493e-05,2]
[355636219,1741416643735,-749.83,8.493e-05,2]
[355636220,1741416643744,-500.0,8.493e-05,2]
[355636221,1741416643753,-647.26,8.493e-05,2]
[355636222,1741416643762,-964.61,8.493e-05,2]
[355636223,1741416643772,-625.3,8.493e-05,2]
[355636224,1741416643781,-519.7,8.493e-05,2]
[355636225,1741416643790,-592.38,8.493e-05,2]
[355636226,1741416643799,-500.0,8.493e-05,2]
[355636227,1741416643809,-1220.19,8.493e-05,2]
[355636228,1741416643819,-500.0,8.493e-05,2]
[355636229,1741416643828,-587.63795687,8.493e-05,2]
[355636230,1741416643838,-500.0,8.493e-05,2]
[355636231,1741416643846,-1298.81,8.493e-05,2]
[355636232,1741416643855,-500.0,8.493e-05,2]
[355636233,1741416643864,-580.12,8.493e-05,2]
[355636234,1741416643874,-1399.63,8.493e-05,2]
[355636235,1741416643883,-500.0,8.493e-05,2]
[355636236,1741416643893,-541.45,8.493e-05,2]
[355636237,1741416643902,-1392.07,8.493e-05,2]
[355636238,1741416643912,-1058.49,8.493e-05,2]
[355636239,1741416643921,-500.0,8.493e-05,2]
[355636240,1741416643931,-500.0,8.493e-05,2]
[355636241,1741416643940,-1250.4,8.493e-05,2]
[355636242,1741416643949,-500.0,8.493e-05,2]
[355636243,1741416643958,-572.68937778,8.493e-05,2]
[355636244,1741416643967,-500.0,8.493e-05,2]
[355636245,1741416643976,-500.0,8.493e-05,2]
[355636246,1741416643986,-1515.52,8.493e-05,2]
[355636247,1741416643995,-1127.73,8.493e-05,2]
[355636248,1741416644004,-500.0,8.493e-05,2]
[355636249,1741416644013,-1018.16,8.493e-05,2]
[355636250,1741416644022,-500.0,8.493e-05,2]
[355636251,1741416644031,-825.98,8.493e-05,2]
[355636252,1741416644040,-1012.03,8.493e-05,2]
[355636253,1741416644049,-977.89,8.493e-05,2]
[355636254,1741416644059,-533.79,8.493e-05,2]
[355636255,1741416644068,-500.0,8.493e-05,2]
[355636256,1741416644077,-589.47917418,8.493e-05,2]
[355636257,1741416644087,-739.1,8.493e-05,2]
[355636258,1741416644099,-500.0,8.493e-05,2]
[355636259,1741416644109,-695.79,8.493e-05,2]
[355636260,1741416644119,-628.78,8.493e-05,2]
[355636261,1741416644129,-1328.04,8.493e-05,2]
[355636262,1741416644139,-1150.04,8.493e-05,2]
[355636263,1741416644149,-505.94525848,8.493e-05,2]
[355636264,1741416644159,-1846.11,8.493e-05,2]
[355636265,1741416644169,-1294.03,8.493e-05,2]
[355636266,1741416644179,-500.0,8.493e-05,2]
[355636267,1741416644188,-627.08,8.493e-05,2]
[355636268,1741416644198,-500.0,8.493e-05,2]
[355636269,1741416644207,-716.77,8.493e-05,2]
[355636270,1741416644217,-500.0,8.493e-05,2]
[355636271,1741416644226,-500.0,8.493e-05,2]
[355636272,1741416644235,-500.0,8.493e-05,2]
[355636273,1741416644245,-1209.74,8.493e-05,2]
[355636274,1741416644254,-500.0,8.493e-05,2]
[355636275,1741416644263,-1030.98,8.493e-05,2]
[355636276,1741416644273,-500.0,8.493e-05,2]
[355636277,1741416644282,-500.0,8.493e-05,2]
[355636278,1741416644291,-1315.4,8.493e-05,2]
[355636279,1741416644301,-1456.52,8.493e-05,2]
[355636280,1741416644310,-867.7,8.493e-05,2]
[355636281,1741416644319,-753.47,8.493e-05,2]
[355636282,1741416644329,-1262.29,8.493e-05,2]
[355636283,1741416644338,-1187.0,8.493e-05,2]
[355636284,1741416644347,-1458.48,8.493e-05,2]
[355636285,1741416644356,-500.0,8.493e-05,2]
[355636286,1741416644366,-606.15,8.493e-05,2]
[355636287,1741416644375,-684.94,8.493e-05,2]
[355636288,1741416644384,-1584.46,8.493e-05,2]
[355636289,1741416644393,-1152.85,8.493e-05,2]
[355636290,1741416644402,-590.3289956,8.493e-05,2]
[355636291,1741416644412,-500.0,8.493e-05,2]
[355636292,1741416644421,-1835.46,8.493e-05,2]
[355636293,1741416644431,-500.0,8.493e-05,2]
[355636294,1741416644440,-500.0,8.493e-05,2]
[355636295,1741416644450,-970.17,8.493e-05,2]
[355636296,1741416644459,-500.0,8.493e-05,2]
[355636297,1741416644469,-500.0,8.493e-05,2]
[355636298,1741416644478,-1375.5,8.493e-05,2]
[355636299,1741416644488,-500.0,8.493e-05,2]
[355636300,1741416644497,-1026.86,8.493e-05,2]
[355636301,1741416644512,-435.68627084,8.493e-05,2]
[355636302,1741416644521,-500.0,8.493e-05,2]
[355636303,1741416644531,-500.0,8.493e-05,2]
[355636304,1741416644539,-2041.72,8.493e-05,2]
[355636305,1741416644549,-943.38,8.493e-05,2]
[355636306,1741416644559,-340.8,8.493e-05,2]
[355636307,1741416644568,-1670.33,8.493e-05,2]
[355636308,1741416644579,-500.0,8.493e-05,2]
[355636309,1741416644589,-500.0,8.493e-05,2]
[355636310,1741416644598,-500.0,8.493e-05,2]
[355636311,1741416644608,-500.0,8.493e-05,2]
[355636312,1741416644618,-991.32,8.493e-05,2]
[355636313,1741416644627,-1037.41,8.493e-05,2]
[355636314,1741416644637,-500.0,8.493e-05,2]
[355636315,1741416644646,-775.11,8.493e-05,2]
[355636316,1741416644656,-1315.89,8.493e-05,2]
[355636317,1741416644666,-500.0,8.493e-05,2]
[355636318,1741416644675,-500.0,8.493e-05,2]
[355636319,1741416644684,-500.0,8.493e-05,2]
[355636320,1741416644693,-500.0,8.493e-05,2]
[355636321,1741416644703,-1009.44,8.493e-05,2]
[355636322,1741416644713,-1954.84,8.493e-05,2]
[355636323,1741416644723,-1961.98,8.493e-05,2]
[355636324,1741416644732,-945.38,8.493e-05,2]
[355636325,1741416644742,-812.14,8.493e-05,2]
[355636326,1741416644752,-500.0,8.493e-05,2]
[355636327,1741416644762,-500.0,8.493e-05,2]
[355636328,1741416644771,-500.0,8.493e-05,2]
[355636329,1741416644780,-925.58,8.493e-05,2]
[355636330,1741416644790,-855.17,8.493e-05,2]
[355636331,1741416644800,-1387.0,8.493e-05,2]
[355636332,1741416644809,-784.92,8.493e-05,2]
[355636333,1741416644819,-500.0,8.493e-05,2]
[355636334,1741416644829,-545.14,8.493e-05,2]
[355636335,1741416644839,-1907.82,8.493e-05,2]
[355636336,1741416644848,-500.0,8.493e-05,2]
[355636337,1741416644858,-1072.13,8.493e-05,2]
[355636338,1741416644867,-1116.24,8.493e-05,2]
[355636339,1741416644878,-1223.38,8.493e-05,2]
[355636340,1741416644888,-500.0,8.493e-05,2]
[355636341,1741416644898,-500.0,8.493e-05,2]
[355636342,1741416644907,-500.0,8.493e-05,2]
[355636343,1741416644917,-500.0,8.493e-05,2]
[355636344,1741416644927,-1595.48,8.493e-05,2]
[355636345,1741416644937,-500.0,8.493e-05,2]
[355636346,1741416644947,-1383.06,8.493e-05,2]
[355636347,1741416644957,-1355.44,8.493e-05,2]
[355636348,1741416644966,-500.0,8.493e-05,2]
[355636349,1741416644976,-1864.0,8.493e-05,2]
[355636350,1741416644986,-851.82,8.493e-05,2]
[355636351,1741416644996,-1068.79,8.493e-05,2]
[355636352,1741416645006,-500.0,8.493e-05,2]
[355636353,1741416645016,-500.0,8.493e-05,2]
[355636354,1741416645026,-1267.33,8.493e-05,2]
[355636355,1741416645035,-1232.94,8.493e-05,2]
[355636356,1741416645045,-2350.71,8.493e-05,2]
[355636357,1741416645055,-553.54,8.493e-05,2]
[355636358,1741416645065,-500.0,8.493e-05,2]
[355636359,1741416645074,-918.53,8.493e-05,2]
[355636360,1741416645083,-1104.38,8.493e-05,2]
[355636361,1741416645093,-502.88252148,8.493e-05,2]
[355636362,1741416645103,-1478.12,8.493e-05,2]
[355636363,1741416645113,-500.0,8.493e-05,2]
[355636364,1741416645122,-152.166127,8.493e-05,2]
[355636365,1741416645131,-500.0,8.493e-05,2]
[355636366,1741416645140,-687.53,8.493e-05,2]
[355636367,1741416645150,-500.0,8.493e-05,2]
[355636368,1741416645159,-865.66,8.493e-05,2]
[355636369,1741416645168,-500.0,8.493e-05,2]
[355636370,1741416645178,-1596.46,8.493e-05,2]
[355636371,1741416645187,-1375.11,8.493e-05,2]
[355636372,1741416645197,-1696.49,8.493e-05,2]
[355636373,1741416645207,-1772.28,8.493e-05,2]
[355636374,1741416645216,-500.0,8.493e-05,2]
[355636375,1741416645226,-500.0,8.493e-05,2]
[355636376,1741416645235,-500.0,8.493e-05,2]
[355636377,1741416645244,-1713.9,8.493e-05,2]
[355636378,1741416645253,-392.55,8.493e-05,2]
[355636379,1741416645262,-840.1,8.493e-05,2]
[355636380,1741416645271,-500.0,8.493e-05,2]
[355636381,1741416645280,-152.08456423,8.493e-05,2]
[355636382,1741416645289,-2123.41,8.493e-05,2]
[355636383,1741416645299,-865.09,8.493e-05,2]
[355636384,1741416645308,-1685.83,8.493e-05,2]
[355636385,1741416645316,-753.85,8.493e-05,2]
[355636386,1741416645326,-500.0,8.493e-05,2]
[355636387,1741416645335,-904.05,8.493e-05,2]
[355636388,1741416645344,-666.45,8.493e-05,2]
[355636389,1741416645353,-2690.94,8.493e-05,2]
[355636390,1741416645362,-500.0,8.493e-05,2]
[355636391,1741416645371,-500.0,8.493e-05,2]
[355636392,1741416645380,-500.0,8.493e-05,2]
[355636393,1741416645390,-500.0,8.493e-05,2]
[355636394,1741416645399,-1127.72,8.493e-05,2]
[355636395,1741416645409,-500.0,8.493e-05,2]
[355636396,1741416645418,-303.2,8.493e-05,2]
[355636397,1741416645428,-500.0,8.493e-05,2]
[355636398,1741416645437,-911.24,8.493e-05,2]
[355636399,1741416645446,-1244.21,8.493e-05,2]
[355636400,1741416645455,-500.0,8.493e-05,2]
[355636401,1741416645464,-500.0,8.493e-05,2]
[355636402,1741416645473,-940.27,8.493e-05,2]
[355636403,1741416645482,-500.0,8.493e-05,2]
[355636404,1741416645492,-1141.82,8.493e-05,2]
[355636405,1741416645503,-4057.4,8.493e-05,2]
[355636406,1741416645514,-500.0,8.493e-05,2]
[355636407,1741416645523,-949.87,8.493e-05,2]
[355636408,1741416645532,-882.01,8.493e-05,2]
[355636409,1741416645544,-1044.29,8.493e-05,2]
[355636410,1741416645554,-1391.97,8.493e-05,2]
[355636411,1741416645564,-500.0,8.493e-05,2]
[355636412,1741416645574,-987.8,8.493e-05,2]
[355636413,1741416645586,-1503.6,8.493e-05,2]
[355636414,1741416645595,-2071.12,8.493e-05,2]
[355636415,1741416645605,-1739.36,8.493e-05,2]
[355636416,1741416645613,-788.3,8.493e-05,2]
[355636417,1741416645623,-500.0,8.493e-05,2]
[355636418,1741416645632,-500.0,8.493e-05,2]
[355636419,1741416645641,-500.0,8.493e-05,2]
[355636420,1741416645650,-500.0,8.493e-05,2]
[355636421,1741416645660,-500.0,8.493e-05,2]
[355636422,1741416645669,-812.07,8.493e-05,2]
[355636423,1741416645678,-1266.75,8.493e-05,2]
[355636424,1741416645687,-770.03,8.493e-05,2]
[355636425,1741416645697,-2243.45,8.493e-05,2]
[355636426,1741416645706,-1162.87,8.493e-05,2]
[355636427,1741416645715,-1597.68,8.493e-05,2]
[355636428,1741416645724,-1405.97,8.493e-05,2]
[355636429,1741416645733,-500.0,8.493e-05,2]
[355636430,1741416645743,-821.99,8.493e-05,2]
[355636431,1741416645752,-1889.14,8.493e-05,2]
[355636432,1741416645761,-570.9,8.493e-05,2]
[355636433,1741416645769,-2278.07,8.493e-05,2]
[355636434,1741416645778,-500.0,8.493e-05,2]
[355636435,1741416645787,-2472.22,8.493e-05,2]
[355636436,1741416645796,-500.0,8.493e-05,2]
[355636437,1741416645805,-500.0,8.493e-05,2]
[355636438,1741416645814,-912.18,8.493e-05,2]
[355636439,1741416645823,-1325.83,8.493e-05,2]
[355636440,1741416645832,-2543.0,8.493e-05,2]
[355636441,1741416645841,-841.46,8.493e-05,2]
[355636442,1741416645850,-553.36,8.493e-05,2]
[355636443,1741416645859,-2187.11,8.493e-05,2]
[355636444,1741416645868,-936.52,8.493e-05,2]
[355636445,1741416645878,-500.0,8.493e-05,2]
[355636446,1741416645887,-500.36,8.493e-05,2]
[355636447,1741416645895,-500.0,8.493e-05,2]
[355636448,1741416645904,-500.0,8.493e-05,2]
[355636449,1741416645913,-2236.97,8.493e-05,2]
[355636450,1741416645925,-500.0,8.493e-05,2]
[355636451,1741416645935,-522.32700679,8.493e-05,2]
[355636452,1741416645944,-500.0,8.493e-05,2]
[355636453,1741416645954,-500.0,8.493e-05,2]
[355636454,1741416645963,-1971.62,8.493e-05,2]
[355636455,1741416645971,-514.35173988,8.493e-05,2]
[355636456,1741416645980,-500.0,8.493e-05,2]
[355636457,1741416645989,-1497.0,8.493e-05,2]
[355636458,1741416645999,-596.15,8.493e-05,2]
[355636459,1741416646008,-824.23,8.493e-05,2]
[355636460,1741416646017,-873.61,8.493e-05,2]
[355636461,1741416646027,-1114.88,8.493e-05,2]
[355636462,1741416646035,-500.0,8.493e-05,2]
[355636463,1741416646044,-2370.29,8.493e-05,2]
[355636464,1741416646053,-500.0,8.493e-05,2]
[355636465,1741416646062,-1572.94,8.493e-05,2]
[355636466,1741416646071,-704.4,8.493e-05,2]
[355636467,1741416646243,-500.0,8.493e-05,2]
[355636468,1741416646252,-500.0,8.493e-05,2]
[355636469,1741416646262,-1111.98,8.493e-05,2]
[355636470,1741416646271,-2355.58,8.493e-05,2]
[355636471,1741416646281,-892.89,8.493e-05,2]
[355636472,1741416646290,-660.15,8.493e-05,2]
[355636473,1741416646299,-500.0,8.493e-05,2]
[355636474,1741416646308,-1409.79,8.493e-05,2]
[355636475,1741416646318,-1478.09,8.493e-05,2]
[355636476,1741416646328,-500.0,8.493e-05,2]
[355636477,1741416646338,-1231.91,8.493e-05,2]
[355636478,1741416646347,-500.0,8.493e-05,2]
[355636479,1741416646357,-1617.96,8.493e-05,2]
[355636480,1741416646367,-603.84,8.493e-05,2]
[355636481,1741416646376,-500.0,8.493e-05,2]
[355636482,1741416646385,-14521.24,8.493e-05,2]
[355636483,1741416646395,-1567.28,8.493e-05,2]
[355636484,1741416646404,-1207.1,8.493e-05,2]
[355636485,1741416646413,-2350.06,8.493e-05,2]
[355636486,1741416646422,-500.0,8.493e-05,2]
[355636487,1741416646432,-686.59,8.493e-05,2]
[355636488,1741416646441,-2603.93,8.493e-05,2]
[355636489,1741416646450,-1154.16,8.493e-05,2]
[355636490,1741416646459,-2865.86,8.493e-05,2]
[355636491,1741416646468,-500.0,8.493e-05,2]
[355636492,1741416646477,-3026.37,8.493e-05,2]
[355636493,1741416646486,-10188.89,8.493e-05,2]
[355636494,1741416646496,-8637.7,8.493e-05,2]
[355636495,1741416646507,-184.37853624,8.493e-05,2]
[355636496,1741416646935,-500.0,8.219e-05,2]
[355636497,1741416646945,-3546.72146376,8.493e-05,2]
[355636498,1741416646955,-500.0,8.493e-05,2]
[355636499,1741416646964,-500.0,8.493e-05,2]
[355636500,1741416646973,-500.0,8.493e-05,2]
[355636501,1741416646982,-1359.66,8.493e-05,2]
[355636502,1741416646991,-2353.05,8.493e-05,2]
[355636503,1741416647001,-899.19,8.493e-05,2]
[355636504,1741416647010,-854.0,8.493e-05,2]
[355636505,1741416647019,-500.0,8.493e-05,2]
[355636506,1741416647028,-4305.97,8.493e-05,2]
[355636507,1741416647036,-1507.29,8.493e-05,2]
[355636508,1741416647045,-2238.1,8.493e-05,2]
[355636509,1741416647054,-2906.82,8.493e-05,2]
[355636510,1741416647063,-500.0,8.493e-05,2]
[355636511,1741416647072,-6004.05,8.493e-05,2]
[355636512,1741416647081,-500.0,8.493e-05,2]
[355636513,1741416647090,-500.0,8.493e-05,2]
[355636514,1741416647099,-314.14042867,8.493e-05,2]